[Event "HSK GM Invitational 2022"]
[Site "Hamburg"]
[Date "2022.05.25"]
[Round "7.1"]
[White "Svane, Frederik"]
[Black "Prohaszka, Peter"]
[Result "1-0"]
[ECO "B13"]
[WhiteElo "2501"]
[BlackElo "2579"]
[Annotator "TA"]
[PlyCount "75"]
[EventDate "2022.05.20"]
[EventType "tourn"]
[EventCountry "GER"]
[SourceTitle "playchess.com"]
[Source "ChessBase"]
[SourceQuality "1"]
[TimeControl "40/5400+30:1800+30"]

{[%evp 9,75,9,13,8,6,4,14,10,24,16,34,17,31,24,14,-21,-26,-20,0,-42,-32,-24,-10,-173,-39,-68,-55,-97,0,0,0,0,0,0,171,105,114,114,98,106,220,208,209,198,209,198,198,178,163,164,329,325,417,383,458,436,637,637,651,652,656,643,822,824,982,951,867,868]} 1. e4 {[%emt 0:00:02]} c6 {[%emt 0:00:43]} 2. Nf3 {[%emt 0:00:05]} d5 {[%emt 0:00:06]} 3. exd5 {[%emt 0:00:04]} cxd5 {[%emt 0:00:05]} 4. d4 {[%emt 0:00:04]} Nc6 {[%emt 0:00:28]} 5. c3 {[%emt 0:00:05]} Bf5 {[%emt 0:02:55]} 6. Qb3 {[%emt 0:00:12] B13: Caro-Kann: Exchange Variation and Panov-Botvinnik Attack.} Qd7 {[%emt 0:00:42]} 7. Nh4 {[%emt 0:00:05] is the legacy move (7.Bb5).} Bg6 {[%emt 0:00:26]} 8. Be2 {[%emt 0:00:10] The position is equal.} e6 {[%emt 0:00:24]} 9. Nd2 {[%emt 0:00:16] [#]} Bd6 $146 {[%emt 0:01:47]} ({Predecessor:} 9... O-O-O 10. O-O Nf6 11. Ndf3 Ne4 12. Nxg6 hxg6 13. Re1 Bd6 14. h3 Kb8 15. a4 Ka8 {½-½ (50) Tylecek,D (2189)-Jarabinsky,M (2284) LSS email 2018}) 10. O-O {[%emt 0:00:04]} Nge7 {[%emt 0:09:49]} 11. Nxg6 {[%emt 0:03:38]} hxg6 {[%emt 0:03:32][%cal Bh7g6,Bg6g5][%mdl 32]} 12. Nf3 {[%emt 0:00:07]} f6 {[%emt 0:05:13]} 13. h3 {[%emt 0:10:09]} O-O-O {[%emt 0:09:06]} 14. Qa4 {[%emt 0:12:12]} Kb8 {[%emt 0:00:33]} 15. Re1 {[%emt 0:02:25][%cal Bf1e1,Be1e6,Be6e3,Be3h3][%mdl 32]} g5 {[%emt 0:05:18][%cal Og5g4]} 16. Bf1 $2 {[%emt 0:04:44]} (16. b4 $11 {and White has nothing to worry.} Nf5 17. Bd1) 16... Nf5 {[%emt 0:07:45]} (16... g4 $1 $19 {[%cal Rg4f3]} 17. hxg4 e5) 17. Qc2 {[%emt 0:08:19]} Qc7 {[%emt 0:15:10][%cal Og5g4] Threatens to win with ...g4!} 18. Bd3 {[%emt 0:04:07]} (18. Rxe6 $2 Ncxd4 $1 {[%mdl 512]} 19. Qd3 Nxe6 $19) 18... g6 {[%emt 0:04:51]} ({Black should play} 18... g4 $1 $17 {[%cal Rg4f3]} 19. hxg4 (19. Rxe6 gxf3 20. Bxf5 g6 $11) 19... Nh4) 19. Rxe6 $11 {[%emt 0:24:28]} g4 $1 {[%emt 0:14:53]} 20. hxg4 {[%emt 0:11:19]} Qh7 {[%emt 0:00:04][%csl Gh8][%cal Rh7h1]} 21. Kf1 {[%emt 0:00:03]} Nh4 {[%emt 0:01:48] [#]} (21... Nfxd4 $11 {and Black stays safe.} 22. cxd4 Qh1+ 23. Ke2 Rhe8) 22. Ng1 {[%emt 0:04:56]} (22. Rxf6 $2 Nxf3 23. Rxf3 (23. gxf3 $2 Rde8 $19) 23... Qh1+ 24. Ke2 Rde8+ 25. Be3 Qxa1 $19) ({White should try} 22. Rxd6 $1 $18 Rxd6 (22... Nxf3 23. Rxd8+) 23. Ng1 (23. Bf4 Nxf3 24. Bxd6+ Ka8 $11) 23... Nxg2 24. f3) 22... Bh2 $16 {[%emt 0:03:16]} 23. Re3 {[%emt 0:02:37]} (23. Rxf6 Bxg1 24. Qe2 (24. Kxg1 $2 Nf3+ 25. Kf1 Qh1+ 26. Ke2 Ncxd4+ 27. cxd4 Nxd4+ 28. Kd2 Nxc2 $19) (24. Bxg6 Nxg6 25. Qxg6 Qh1 $17) (24. Bf4+ Ka8 $15) 24... Rde8 25. Bf4+ Ka8 $17) 23... Bxg1 {[%emt 0:09:37]} 24. Rh3 $36 {[%emt 0:00:02][%mdl 2048] aiming for Bf4+. White is in control.} (24. Kxg1 {[#]} Nxg2 $1 {[%mdl 512]} 25. f3 Nxe3 $19) 24... Qd7 {[%emt 0:00:17]} 25. Kxg1 $18 {[%emt 0:03:04]} Qxg4 {[%emt 0:00:28][%csl Gh4][%cal Rg4g2]} 26. f3 {[%emt 0:00:03][%cal Bf2f3,Bf3f4,Bf4g5,Bg5h6][%mdl 32]} Qd7 {[%emt 0:02:24]} 27. Bf4+ {[%emt 0:02:51]} Ka8 {[%emt 0:00:01]} 28. Bh2 {[%emt 0:03:16]} g5 {[%emt 0:00:10]} 29. Qf2 {[%emt 0:01:41]} f5 $2 {[%emt 0:00:37]} (29... Ne7 {was worth a try.} 30. f4 Neg6) 30. f4 {[%emt 0:00:30]} Ng6 {[%emt 0:02:22]} 31. fxg5 {[%emt 0:00:03]} Nce7 {[%emt 0:00:05]} 32. Rh6 {[%emt 0:00:28] White is clearly winning.} Rxh6 {[%emt 0:00:35]} (32... Rhg8 $142 33. Rf1 f4 34. Bxf4 Rdf8) 33. gxh6 {[%emt 0:00:01]} Rh8 {[%emt 0:00:01]} 34. Re1 {[%emt 0:00:33]} a6 {[%emt 0:00:17]} 35. Qe3 {[%emt 0:00:23]} Nc6 {[%emt 0:00:47]} 36. Qg5 {[%emt 0:00:20][%csl LRf5,LRg6]} Nge7 {[%emt 0:01:23]} 37. Qf6 {[%emt 0:00:49]} Qd8 {[%emt 0:00:20]} 38. Bd6 {[%emt 0:01:18] Weighted Error Value: White=0.20 (precise) /Black=0.43} 1-0

[Event "HSK GM Invitational 2022"]
[Site "Hamburg"]
[Date "2022.05.25"]
[Round "7.2"]
[White "Kotronias, Vasilios"]
[Black "Colpe, Malte"]
[Result "1/2-1/2"]
[ECO "B90"]
[WhiteElo "2465"]
[BlackElo "2348"]
[Annotator "TA"]
[PlyCount "117"]
[EventDate "2022.05.20"]
[EventType "tourn"]
[EventCountry "GER"]
[SourceTitle "playchess.com"]
[Source "ChessBase"]
[SourceQuality "1"]
[TimeControl "40/5400+30:1800+30"]

{[%evp 15,117,9,18,20,17,37,11,18,29,0,0,0,0,0,7,8,22,0,0,0,0,0,32,29,35,28,64,30,55,46,49,48,48,51,121,108,180,182,174,26,22,0,0,0,-8,-180,-170,-245,-229,-337,-271,-581,-568,-458,-364,-383,-379,-449,-458,-631,-627,-1084,-1097,-963,-794,-2061,-1941,-2461,-2452,-29968,-2918,-29975,-29973,-8317,-6786,-5895,-1789,-1791,-1791,-1739,-1745,-1698,-1543,-1631,-1657,-1368,-971,-864,-795,-645,-515,-424,0,-128,0,-8,0,-156,-82,-119,0,0,0,0]} 1. e4 {[%emt 0:05:37]} c5 {[%emt 0:00:07]} 2. Nf3 {[%emt 0:00:07]} d6 {[%emt 0:00:06]} 3. d4 {[%emt 0:00:07]} cxd4 {[%emt 0:00:05]} 4. Nxd4 {[%emt 0:00:04]} Nf6 {[%emt 0:00:07]} 5. Nc3 {[%emt 0:00:05]} a6 {[%emt 0:00:04]} 6. Be3 {[%emt 0:00:22]} e5 {[%emt 0:00:24]} 7. Nf3 {[%emt 0:00:25]} Be7 {[%emt 0:00:32]} 8. Bc4 {[%emt 0:00:24]} Be6 {[%emt 0:00:46]} 9. Bxe6 {[%emt 0:01:20] B90: Sicilian Najdorf: Unusual White 6th moves, 6 Be3 Ng4 and 6 Be3 e5.} fxe6 {[%emt 0:00:07][%cal Bf7e6,Be6d5,Bd5d4][%mdl 32]} 10. Ng5 {[%emt 0:00:04]} Qd7 {[%emt 0:00:23]} 11. Qf3 {[%emt 0:00:10] next Qh3 is good for White.} d5 {[%emt 0:01:55]} 12. exd5 {[%emt 0:02:37]} (12. O-O-O $5 {[%cal Re4d5]} d4 13. Bxd4 exd4 14. e5 $11) 12... exd5 {[%emt 0:00:35]} 13. O-O-O {[%emt 0:00:14][%cal Rc3d5]} d4 {[%emt 0:03:19]} 14. Nce4 {[%emt 0:02:10]} O-O {[%emt 0:10:24]} 15. Bd2 $36 {[%emt 0:01:11][%mdl 2048] White has the initiative.} Nxe4 {[%emt 0:13:29]} 16. Qb3+ {[%emt 0:00:07]} Kh8 {[%emt 0:00:08]} 17. Nxe4 {[%emt 0:00:06]} Nc6 {[%emt 0:03:30]} 18. f3 {[%emt 0:01:36]} b5 {[%emt 0:01:55] [#]} 19. h4 $146 {[%emt 0:02:28]} ({Predecessor:} 19. Kb1 a5 20. h4 a4 21. Qd3 b4 22. Ng5 Qf5 23. Qb5 Qd7 24. Qd3 Qf5 25. Qb5 Qd7 26. Qd3 {½-½ (26) Sziva,E (2250)-Savova,S (2240) Brno 1989}) 19... Rac8 {[%emt 0:08:03]} 20. Kb1 {[%emt 0:01:04]} b4 {[%emt 0:03:29]} 21. Qd3 {[%emt 0:01:49] White is more active.} Qd5 {[%emt 0:06:09]} 22. Ng5 {[%emt 0:14:11][%csl Gg5][%cal Rd3h7]} (22. Qxa6 $2 Ra8 23. Qxa8 Rxa8 $19) 22... Qg8 {[%emt 0:00:23]} 23. Rde1 {[%emt 0:00:17]} (23. Qxa6 $2 Ra8 $1 24. Qxa8 Rxa8 $19) 23... a5 {[%emt 0:03:40]} 24. f4 {[%emt 0:04:33]} Bxg5 {[%emt 0:07:39]} (24... exf4 $14 25. Re4 h6) 25. hxg5 $16 {[%emt 0:00:56][%cal Bh4g5,Bg5g6][%mdl 32]} exf4 {[%emt 0:00:34]} (25... g6 $16) 26. g6 $18 {[%emt 0:13:37]} h6 {[%emt 0:01:03]} 27. g4 {[%emt 0:10:26]} (27. Qe4 $18) 27... Qd5 $1 $11 {[%emt 0:05:38]} (27... f3 $2 28. Bxh6 $1 {[%mdl 512]} gxh6 29. Rxh6+ Kg7 30. Reh1 $18 (30. Rh7+ Qxh7 31. gxh7 Rce8 $18)) 28. g5 {[%emt 0:05:06]} (28. Rh5 $5 {[%cal Rh5d5]} Qd7 29. Rf5 $11) 28... Qxg5 {[%emt 0:11:22] ...Qf5 is the strong threat.} 29. Reg1 $1 {[%emt 0:00:06]} Qf6 {[%emt 0:00:12]} 30. Rh5 {[%emt 0:02:06]} (30. Rxh6+ $1 $11 {and White stays safe.} gxh6 31. g7+ Qxg7 32. Rxg7 Kxg7 33. Qh3) 30... Ne5 $19 {[%emt 0:02:59][%cal Bc6e5,Be5c4,Bc4e3][%mdl 32]} 31. Qe4 {[%emt 0:14:40]} (31. Qxd4 $142 Rcd8 32. Qxe5 Qxe5 33. Rxe5 Rxd2 34. Kc1) 31... Rce8 $1 {[%emt 0:03:39] Strongly threatening ...Nc4.} 32. Bc1 {[%emt 0:08:36]} (32. Rxh6+ $142 gxh6 33. g7+ Qxg7 34. Rxg7 Kxg7 35. Qxd4 (35. Bxf4 $2 Nf3 $19)) 32... Re7 {[%emt 0:04:45]} 33. b3 $2 {[%emt 0:00:32] [#]} (33. Qxd4 Nxg6 34. Qf2) 33... Nc4 $1 {[%emt 0:02:17][%mdl 512]} 34. Qd3 {[%emt 0:00:10]} (34. Qxf4 Na3+) 34... Ne3 {[%emt 0:00:47] aiming for ...f3.} 35. Bb2 {[%emt 0:00:35]} Nf5 {[%emt 0:02:08]} 36. Qf3 {[%emt 0:02:09]} Ng3 {[%emt 0:01:07]} 37. Rxa5 {[%emt 0:04:43]} Ne2 {[%emt 0:00:18]} 38. Re1 {[%emt 0:02:27]} Nc3+ {[%emt 0:01:10]} 39. Bxc3 {[%emt 0:00:04]} bxc3 {[%emt 0:00:30]} 40. Rd1 {[%emt 0:02:30]} Re3 {[%emt 0:02:30]} 41. Qf1 {[%emt 0:04:41]} f3 {[%emt 0:03:51]} 42. Ra6 {[%emt 0:00:05]} Qe5 {[%emt 0:02:04][%cal Od4d3]} 43. a4 {[%emt 0:13:06]} d3 {[%emt 0:04:02]} 44. Ka2 {[%emt 0:03:13]} d2 {[%emt 0:02:49]} 45. Ra7 {[%emt 0:03:11]} Re1 {[%emt 0:03:10]} (45... Qe4 $142 46. Rc1 Re1 47. Rf7 Rxf7 48. Rxe1 dxe1=Q 49. Qxe1 Qxe1 50. gxf7 Qe7 51. Kb1 f2 52. Ka2 f1=Q 53. f8=Q+ Qexf8 54. a5 Qc1 55. a6 Qb2#) 46. Rf7 {[%emt 0:00:40]} Rg8 {[%emt 0:05:01]} 47. Qxf3 {[%emt 0:00:22]} Rxd1 {[%emt 0:00:23]} 48. Qxd1 {[%emt 0:00:06][%mdl 4096] Endgame KQR-KQR} Qe4 {[%emt 0:01:01]} 49. Rd7 {[%emt 0:04:44]} Qxg6 {[%emt 0:00:57]} 50. Rd3 {[%emt 0:00:08]} Rc8 {[%emt 0:00:26]} 51. Qf3 {[%emt 0:01:27]} Qg1 {[%emt 0:02:04]} 52. Rd6 {[%emt 0:00:43]} Qg5 {[%emt 0:05:10] And now ...Rd8 would win.} (52... Qc1 53. Rxh6+ gxh6 54. Qf6+ Kh7 55. Qf7+ Kh8 56. Qf6+ Kh7 57. Qf7+ Kh8 58. Qf6+ $11) 53. Qd3 {[%emt 0:00:26]} Qe7 $2 {[%emt 0:00:51]} (53... Rf8 $19 54. b4 (54. Qxc3 Rd8 $19) 54... Qe7) 54. Qd4 {[%emt 0:00:46] [#]} (54. a5 $11) 54... Qg5 {[%emt 0:01:50]} (54... h5 $1 $17 {Threatens to win with ...Qg5.} 55. a5 (55. Rh6+ Kg8 $11) 55... h4) 55. b4 {[%emt 0:01:24]} Qf5 {[%emt 0:01:13]} 56. Kb3 {[%emt 0:00:12] [#]} (56. Ka3 $1 $11) 56... Qf7+ {[%emt 0:00:23]} (56... Qf1 $142 $1 {[%cal Rf1b1] ( -> ...Qb1+)} 57. Ka2 Kh7 58. Qe4+ Kg8) 57. Ka3 $17 {[%emt 0:00:53]} Kh7 {[%emt 0:01:29]} (57... h5 $17 {Hoping for ...Qf1.} 58. a5 Qf3) 58. Qd3+ {[%emt 0:00:12]} Kg8 {[%emt 0:00:32]} 59. a5 {[%emt 0:03:50] Black had all chances to win.  Weighted Error Value: White=0.71/Black=0.35} 1/2-1/2

[Event "HSK GM Invitational 2022"]
[Site "Hamburg"]
[Date "2022.05.25"]
[Round "7.3"]
[White "Koellner, Ruben Gideon"]
[Black "Trent, Lawrence"]
[Result "0-1"]
[ECO "D35"]
[WhiteElo "2440"]
[BlackElo "2398"]
[Annotator "TA"]
[PlyCount "78"]
[EventDate "2022.05.20"]
[EventType "tourn"]
[EventCountry "GER"]
[SourceTitle "playchess.com"]
[Source "ChessBase"]
[SourceQuality "1"]
[TimeControl "40/5400+30:1800+30"]

{[%evp 12,77,27,23,42,37,45,30,33,0,0,-42,33,-26,-17,-5,-19,-28,0,0,96,94,188,186,194,-220,-229,-218,-211,-210,-219,-227,-229,-231,-216,-197,-58,-51,-22,-129,-122,-133,-130,-273,-263,-281,-264,-273,-267,-266,-118,-104,-106,-233,-216,-5690,-5217,-29992,-29993,-29993,-29994,-29994,-29995,-29997,-29998,-29998,-29999,-29999]} 1. d4 {[%emt 0:05:15]} d5 {[%emt 0:02:08]} 2. c4 {[%emt 0:00:07]} e6 {[%emt 0:00:05]} 3. Nc3 {[%emt 0:00:06]} Nf6 {[%emt 0:00:04]} 4. cxd5 {[%emt 0:00:07]} exd5 {[%emt 0:00:04]} 5. Bg5 {[%emt 0:00:06][%cal Bc1g5,Bg5h4,Bh4g3][%mdl 32]} Bb4 {[%emt 0:00:04]} 6. e3 {[%emt 0:01:59]} h6 {[%emt 0:00:03]} 7. Bh4 {[%emt 0:04:07]} g5 {[%emt 0:00:01] D35: Queen's Gambit Declined: Exchange Variation.} 8. Bg3 {[%emt 0:00:12]} Ne4 {[%emt 0:00:01]} 9. Qb3 {[%emt 0:03:00]} c5 {[%emt 0:01:03] White has an edge.} 10. dxc5 {[%emt 0:18:56] [#]} Nc6 $146 {[%emt 0:07:51]} ({Predecessor:} 10... Qa5 11. Rc1 Nc6 12. a3 Bxc3+ 13. bxc3 Nxc5 14. Qb2 Bf5 15. Nf3 O-O-O 16. Ne5 Nxe5 17. Bxe5 {1-0 (55) Khenkin,I (2594)-Margraf,D (2277) Saarbruecken 2015}) 11. Nge2 {[%emt 0:22:31]} Qa5 {[%emt 0:13:10]} (11... O-O $15) 12. O-O-O {[%emt 0:11:38]} ({White should try} 12. a3 $14) 12... Be6 $11 {[%emt 0:00:15]} 13. Nxe4 {[%emt 0:12:21]} dxe4 {[%emt 0:00:53]} 14. Qc2 {[%emt 0:00:06]} Rc8 {[%emt 0:22:53]} (14... Qxc5 15. Qxc5 Bxc5 16. h4 $11) (14... Qxa2 $5 {[%cal Rc6a5]} 15. Nd4 Nxd4 16. Rxd4 Qa1+ 17. Qb1 Qxb1+ 18. Kxb1 Bxc5 19. Rxe4 (19. Bb5+ Kf8 $15) 19... O-O $15) 15. Nc3 $1 {[%emt 0:04:43]} (15. Qxe4 O-O 16. Bd6 Rfd8 $17) 15... Bxc5 {[%emt 0:02:02]} (15... Qxc5 $11 16. Kb1 f5) 16. Qxe4 $16 {[%emt 0:02:23]} (16. Nxe4 $2 Nb4 17. Nd6+ (17. Nf6+ $2 Ke7 $19) 17... Bxd6 18. Qxc8+ Bxc8 $19) 16... Nb4 {[%emt 0:07:17]} (16... Be7 $16) 17. Kb1 $1 $18 {[%emt 0:07:49]} Be7 {[%emt 0:05:59]} 18. Qe5 {[%emt 0:03:07][%mdl 8192]} (18. Bb5+ $18 {was the only winning move.} Nc6 19. Rd4) 18... Bxa2+ $19 {[%emt 0:06:32]} 19. Kc1 {[%emt 0:00:00] [#]} Rxc3+ $1 {[%emt 0:01:36][%mdl 512]} 20. Qxc3 {[%emt 0:00:02]} (20. bxc3 Qa3+ 21. Kd2 Qb2+ 22. Ke1 Nc2+ 23. Kd2 Nd4+ 24. Kd3 (24. Ke1 $2 Qxc3+ 25. Rd2 Qc1+ 26. Rd1 Nc2+ 27. Ke2 Bc4+ 28. Kf3 Qxd1+ $19) 24... Qc2+ 25. Kxd4 Qxd1+ 26. Bd3 Qg4+ 27. e4 Qd7+ 28. Ke3 O-O $11) 20... O-O $40 {[%emt 0:00:06][%mdl 128] Black has strong attack.} 21. Bc7 {[%emt 0:01:26]} (21. Rd7 $2 Be6 $1 22. Bc4 Bxd7 $19) 21... Qa4 {[%emt 0:00:20][%mdl 1024] aiming for ...Bb3. Black has strong compensation.} (21... Qf5 $2 22. e4 Qe6 23. Rd4) 22. Rd4 {[%emt 0:00:47][%cal Oh2h4]} Rc8 {[%emt 0:03:30]} 23. Kd2 {[%emt 0:00:06]} Be6 {[%emt 0:00:41]} (23... Bd5 $19 {Threatens to win with ...Qd7.} 24. Be2 Qd7) 24. Bd3 $15 {[%emt 0:00:50][%cal Oh2h4]} a5 {[%emt 0:00:29] Strongly threatening ...Qe8. Dancing on a razor blade.} 25. Rc1 {[%emt 0:00:38]} (25. Ke2 Qe8 26. h4 g4 $19) (25. h4 $1 $11 {keeps the balance.} gxh4 26. f4 (26. Ke2 Qe8 $17)) 25... Qe8 $1 $17 {[%emt 0:00:32]} ({But not} 25... Bf6 $6 26. Qa3 Qe8 27. Rd6 $11 (27. Qxa5 Nc6 $11) (27. Bxa5 Rxc1 28. Kxc1 Qc6+ 29. Kd1 Nxd3 $15)) 26. Bb1 {[%emt 0:00:31]} Bf6 {[%emt 0:02:55] ...Nd5 is the strong threat.} 27. Qa3 {[%emt 0:00:19]} (27. Qc5 $17) 27... Bxd4 $19 {[%emt 0:02:35]} 28. exd4 {[%emt 0:00:02] [#]} Qd7 $1 {[%emt 0:00:00][%csl LRc7,LRd4]} ({Weaker is} 28... Bg4 29. f3 Qd7 30. Be5 Rxc1 31. Kxc1 $11) 29. Be5 {[%emt 0:00:51]} Rxc1 {[%emt 0:00:09]} 30. Kxc1 {[%emt 0:00:02] [#]} Qc6+ {[%emt 0:00:01]} (30... Qb5 $1 $19 {[%cal Rb5f1] is more deadly. ( -> ...Qf1+)} 31. Qf3 Qf1+ 32. Qd1 Qxf2) 31. Kd2 $17 {[%emt 0:01:12]} Qxg2 {[%emt 0:00:30] Black is more active.} 32. Qg3 {[%emt 0:01:11]} (32. Qe3 $17) 32... Qf1 $19 {[%emt 0:03:35]} 33. Bf6 $2 {[%emt 0:00:00]} (33. Be4 Na2 34. d5 Qc1+ 35. Ke2 Qc4+ 36. Kd2) 33... Qxb1 {[%emt 0:01:53]} 34. Qb8+ {[%emt 0:00:00]} Kh7 {[%emt 0:00:00] Black mates.} 35. Qh8+ {[%emt 0:01:30]} Kg6 36. Qg7+ {[%emt 0:00:00]} Kh5 {[%emt 0:00:01]} 37. f4 {[%emt 0:00:10]} Qd3+ {[%emt 0:00:18]} 38. Ke1 {[%emt 0:00:04]} Qe3+ {[%emt 0:00:06]} 39. Kf1 {[%emt 0:00:06]} Bh3# {[%emt 0:00:34] Weighted Error Value: White=0.55/Black=0.27 (precise)} 0-1

[Event "HSK GM Invitational 2022"]
[Site "Hamburg"]
[Date "2022.05.25"]
[Round "7.4"]
[White "Carlstedt, Jonathan"]
[Black "Souleidis, Georgios"]
[Result "1-0"]
[ECO "D24"]
[WhiteElo "2444"]
[BlackElo "2430"]
[Annotator "TA"]
[PlyCount "89"]
[EventDate "2022.05.20"]
[EventType "tourn"]
[EventCountry "GER"]
[SourceTitle "playchess.com"]
[Source "ChessBase"]
[SourceQuality "1"]
[TimeControl "40/5400+30:1800+30"]

{[%evp 11,89,-48,-51,-57,-43,-84,-81,-133,0,0,0,0,0,-20,-20,-154,3,-26,-15,-25,-16,-92,-86,-76,-70,-120,-119,-126,-94,-98,-102,-297,-68,-73,-87,-97,-93,-100,-115,-71,0,0,53,44,57,25,255,34,275,-6,-27,-18,0,-66,-66,-66,-30,-56,0,0,8,0,55,36,339,339,462,471,460,456,426,333,322,322,308,308,870,852,29994,29995]} 1. d4 {[%emt 0:05:07]} d5 {[%emt 0:00:04]} 2. Nf3 {[%emt 0:00:07]} Nf6 {[%emt 0:00:11]} 3. c4 {[%emt 0:00:07]} dxc4 {[%emt 0:00:06]} 4. Nc3 {[%emt 0:01:15]} a6 {[%emt 0:02:09]} 5. a4 {[%emt 0:05:34]} Nc6 {[%emt 0:06:00]} 6. e4 {[%emt 0:04:55]} Bg4 {[%emt 0:05:19][%cal Oe7e5]} 7. d5 {[%emt 0:03:20] D24: Queen's Gambit Accepted: 3 Nf3 Nf6 4 Nc3.} Na5 {[%emt 0:01:35]} 8. e5 {[%emt 0:02:48] [#]} Nd7 $146 {[%emt 0:03:31]} (8... Nb3 9. exf6 Nxa1 10. Bxc4 $11) ({Predecessor:} 8... Nb3 9. exf6 Nxa1 10. Bxc4 Bxf3 11. gxf3 Qd6 12. Bd2 Qb4 13. b3 Qa3 14. fxe7 Bxe7 {1-0 (39) Voinov,S (2264)-Velikanov,I (2248) Kolomna 2008}) 9. Bf4 {[%emt 0:00:47]} ({White should play} 9. h3 Bxf3 10. Qxf3) 9... g5 {[%emt 0:22:24]} (9... Nb3 $6 10. Rb1 g5 11. Bg3 $11 (11. Bxc4 Na5 $17)) (9... e6 $17 10. h3 Bh5) 10. e6 $1 $11 {[%emt 0:05:58]} (10. Bxg5 Bg7 11. Be2 Bxf3 12. Bxf3 Nxe5 $15) 10... fxe6 {[%emt 0:00:05]} (10... gxf4 11. exf7+ Kxf7 12. Ng5+ Kg6 13. Qxg4 $16) 11. h3 {[%emt 0:09:33] Threatens to win with Bh2.} Bh5 {[%emt 0:05:54]} (11... gxf4 12. hxg4 Bg7 13. Ng5 $15) 12. Bh2 {[%emt 0:03:11]} (12. Bxg5 Bg7 13. Be3 (13. dxe6 Nc5 $17) 13... Nb3 $17) (12. dxe6 $5 gxf4 13. Qd5 $17) 12... Bg7 {[%emt 0:03:08]} 13. Be2 {[%emt 0:03:25]} (13. dxe6 $11 Nc5 14. Qxd8+ Rxd8 15. Bxc7) 13... h6 $2 {[%emt 0:08:39]} (13... Nc5 $1 $17 {Strongly threatening ...Bxf3.} 14. O-O (14. Nxg5 $2 Bxe2 15. Kxe2 Nab3 $19) 14... Bxc3 15. bxc3 Qxd5) 14. dxe6 {[%emt 0:04:40]} (14. O-O $5 {[%cal Rd1c2]}) 14... Nc5 $36 {[%emt 0:01:00][%mdl 2048] Black has some pressure.} 15. Nd5 {[%emt 0:02:44]} Rc8 {[%emt 0:09:57] Hoping for ...Bxf3.} (15... Bxb2 $2 16. Bxc7 (16. Nxc7+ Kf8 $16) 16... Qc8 17. Bxa5 $18) (15... Nd3+ $2 16. Bxd3 cxd3 17. Nxc7+ Kf8 18. Nxa8 $18) 16. Ne5 {[%emt 0:08:59]} (16. Be5 $1 $11 Bxf3 17. Bxg7 Bxe2 18. Qxe2 (18. Kxe2 $2 Rh7 $19) 18... Qxd5 19. Bxh8 Nd3+ 20. Kf1) 16... Bxe2 $17 {[%emt 0:02:15]} 17. Qxe2 {[%emt 0:00:17]} O-O {[%emt 0:04:14]} (17... Qxd5 18. Qh5+ Kd8 19. Nf7+ Ke8 20. Nd6+ Kd8 21. Qe8+ $3 {[%mdl 512]} Rxe8 22. Nf7#) 18. Rd1 {[%emt 0:00:30] Inhibits Nd3+.} (18. Nb4 $15) 18... Nd3+ $1 {[%emt 0:00:46]} (18... Nxa4 $2 19. Ng6 Re8 20. Nxc7 $18) 19. Nxd3 {[%emt 0:00:42]} Qxd5 {[%emt 0:00:05]} 20. Nf4 {[%emt 0:00:15]} Qc5 {[%emt 0:01:44]} 21. Nd5 {[%emt 0:01:10] Prevents Qb4+.} (21. Ng6 $17) 21... c6 $2 {[%emt 0:03:52]} (21... Rcd8 $19 22. Ne3 Qb4+ 23. Kf1 Rxd1+ 24. Nxd1 Nb3) 22. Nxe7+ $15 {[%emt 0:01:39]} Qxe7 {[%emt 0:00:02]} 23. Bd6 {[%emt 0:00:08]} Qf6 {[%emt 0:00:32]} 24. Bxf8 {[%emt 0:00:10]} Rxf8 {[%emt 0:00:23]} (24... Qxf8 $2 25. e7 Re8 26. exf8=Q+ $18) (24... Kxf8 25. O-O Re8 26. Rfe1 $16) 25. O-O {[%emt 0:00:09] [#] And now Rfe1 would win.} Re8 {[%emt 0:00:57]} (25... Qxb2 $2 26. Qh5 Qf6 27. Rfe1 $18) (25... Qe5 $1 $17 {[%cal Re5e2]} 26. Qg4 h5 27. Qxh5 Qxe6 28. Qxg5 Qf5) 26. Rfe1 $11 {[%emt 0:00:28]} Nb3 {[%emt 0:03:36]} (26... Qxb2 $2 27. Qh5 Rf8 28. e7 Qxf2+ 29. Kh1 $18) (26... Bf8 $11) 27. Qxc4 $14 {[%emt 0:03:01]} Nd4 $1 {[%emt 0:00:02]} 28. Re4 {[%emt 0:02:27][%cal Rd1d4][%mdl 1024] White has compensation.} (28. e7+ $5 Kh7 29. Re4 $14) 28... Nf5 {[%emt 0:01:27]} ({But not} 28... Nxe6 29. Rd7 (29. Rd6 Kf7 $11) 29... Bf8 30. Rxb7 $16) (28... b5 $1 $11 29. Qc3 Qe7 30. Rdxd4 c5) 29. Rd7 $2 {[%emt 0:03:05]} (29. e7+ $1 $18 Qf7 30. Rd8) 29... Kh8 $2 {[%emt 0:01:13]} (29... Re7 $1 $14) 30. Rd2 $2 {[%emt 0:07:24]} (30. Rxb7 $18 Nd6 31. Qxc6) 30... Ne7 $11 {[%emt 0:00:34]} 31. Qb4 {[%emt 0:00:48]} b5 {[%emt 0:00:34]} 32. axb5 {[%emt 0:00:55]} (32. Qa5 $11) 32... axb5 $15 {[%emt 0:00:02]} 33. Qd6 {[%emt 0:00:47]} Ra8 {[%emt 0:02:08]} 34. Re1 {[%emt 0:04:00]} Bf8 {[%emt 0:02:29]} (34... Qf4 $15 35. Qd7 Bf6) 35. Qd7 $11 {[%emt 0:00:40]} Kg7 {[%emt 0:01:04]} 36. g3 {[%emt 0:00:58]} Ra2 {[%emt 0:02:58]} (36... Kg8 $11) 37. Re3 $14 {[%emt 0:05:19][%cal Be1e3,Be3f3,Bf3f7][%mdl 32]} Qf5 $2 {[%emt 0:03:19][%mdl 8192]} (37... Rxb2 $2 38. Rxb2 Qxb2 39. Rf3 Qb1+ 40. Kh2 $18) ({Black should try} 37... b4 $14) 38. Kg2 $18 {[%emt 0:00:41]} Ra1 {[%emt 0:00:26] ...Qb1 is the strong threat.} 39. Rdd3 {[%emt 0:00:59] aiming for Rf3. Active counter play!} Ra8 {[%emt 0:03:15] [#]} 40. Rf3 $1 {[%emt 0:05:38]} Qe4 {[%emt 0:00:00]} 41. Rd4 {[%emt 0:29:32]} Qe5 {[%emt 0:05:53]} 42. Rf7+ {[%emt 0:00:00]} Kg8 {[%emt 0:00:01]} 43. Rd3 {[%emt 0:00:00] Really sharp!} Qc5 $2 {[%emt 0:15:26]} (43... h5 44. Ra3 (44. Rxe7 Qe4+ 45. Kh2 Bxe7 $11) 44... Rb8) 44. Rdf3 {[%emt 0:00:00] White threatens Qd3 and mate.} h5 {[%emt 0:00:23]} 45. Qd3 {[%emt 0:00:00] Both players deserved the win here.  Weighted Error Value: White=0.38/Black=0.74} 1-0